[Event "Titled Tuesday Blitz January 25 2022"]
[White "Ovetchkin, Roman"]
[Black "Pajeken, Jakob Leon"]
[WhiteFideId "4119991"]
[BlackFideId "12942839"]
[WhiteElo "2409"]
[BlackElo "2351"]
[Result "1/2-1/2"]
[Round "06"]
[TimeControl "180+1"]
[Date "2022.01.26"]
[WhiteClock "0:01:24"]
[BlackClock "0:02:15"]

1. d4 {[%clk 0:02:58]}  d5 {[%clk 0:03:00]} 2. c4 {[%clk 0:02:56]}  dxc4 {[%clk 0:03:01]} 3. e3 {[%clk 0:02:55]}  e6 {[%clk 0:03:00]} 4. Bxc4 {[%clk 0:02:53]}  Nf6 {[%clk 0:03:01]} 5. Nf3 {[%clk 0:02:53]}  c5 {[%clk 0:03:02]} 6. O-O {[%clk 0:02:52]}  Nc6 {[%clk 0:03:02]} 7. Nc3 {[%clk 0:02:51]}  a6 {[%clk 0:03:03]} 8. a3 {[%clk 0:02:49]}  Be7 {[%clk 0:02:55]} 9. dxc5 {[%clk 0:02:42]}  Qxd1 {[%clk 0:02:54]} 10. Rxd1 {[%clk 0:02:43]}  Bxc5 {[%clk 0:02:55]} 11. b4 {[%clk 0:02:43]}  Be7 {[%clk 0:02:54]} 12. Bb2 {[%clk 0:02:42]}  b5 {[%clk 0:02:55]} 13. Be2 {[%clk 0:02:42]}  Bb7 {[%clk 0:02:55]} 14. a4 {[%clk 0:02:26]}  Bxb4 {[%clk 0:02:43]} 15. axb5 {[%clk 0:02:25]}  axb5 {[%clk 0:02:43]} 16. Rxa8+ {[%clk 0:02:24]}  Bxa8 {[%clk 0:02:43]} 17. Nxb5 {[%clk 0:02:21]}  O-O {[%clk 0:02:42]} 18. Bxf6 {[%clk 0:01:33]}  gxf6 {[%clk 0:02:43]} 19. Nfd4 {[%clk 0:01:34]}  Rd8 {[%clk 0:02:34]} 20. Nxc6 {[%clk 0:01:32]}  Rxd1+ {[%clk 0:02:33]} 21. Bxd1 {[%clk 0:01:33]}  Bxc6 {[%clk 0:02:33]} 22. Nd4 {[%clk 0:01:33]}  Bd7 {[%clk 0:02:29]} 23. Bc2 {[%clk 0:01:29]}  Kg7 {[%clk 0:02:29]} 24. f4 {[%clk 0:01:25]}  e5 {[%clk 0:02:26]} 25. Nf5+ {[%clk 0:01:16]}  Bxf5 {[%clk 0:02:25]} 26. Bxf5 {[%clk 0:01:16]}  Bc5 {[%clk 0:02:25]} 27. fxe5 {[%clk 0:01:09]}  Bxe3+ {[%clk 0:02:24]} 28. Kf1 {[%clk 0:01:09]}  fxe5 {[%clk 0:02:25]} 29. g4 {[%clk 0:01:08]}  h6 {[%clk 0:02:22]} 30. h4 {[%clk 0:01:06]}  Kf6 {[%clk 0:02:20]} 31. h5 {[%clk 0:01:06]}  Kg5 {[%clk 0:02:20]} 32. Ke2 {[%clk 0:01:07]}  Kf4 {[%clk 0:02:20]} 33. Bc8 {[%clk 0:01:06]}  Bb6 {[%clk 0:02:14]} 34. Bf5 {[%clk 0:01:07]}  e4 {[%clk 0:02:13]} 35. Bc8 {[%clk 0:01:08]}  f6 {[%clk 0:02:12]} 36. Bf5 {[%clk 0:01:09]}  e3 {[%clk 0:02:12]} 37. Bc8 {[%clk 0:01:10]}  Ba5 {[%clk 0:02:12]} 38. Bf5 {[%clk 0:01:10]}  Bc7 {[%clk 0:02:07]} 39. Bc8 {[%clk 0:01:11]}  Ke4 {[%clk 0:02:07]} 40. Bf5+ {[%clk 0:01:12]}  Kd4 {[%clk 0:02:08]} 41. Bc8 {[%clk 0:01:13]}  Bg3 {[%clk 0:02:07]} 42. Bf5 {[%clk 0:01:14]}  Bf2 {[%clk 0:02:08]} 43. Bc8 {[%clk 0:01:15]}  Ke5 {[%clk 0:02:08]} 44. Bf5 {[%clk 0:01:16]}  Kf4 {[%clk 0:02:08]} 45. Bc8 {[%clk 0:01:17]}  Kg3 {[%clk 0:02:08]} 46. Bf5 {[%clk 0:01:18]}  Kh4 {[%clk 0:02:09]} 47. Bc8 {[%clk 0:01:19]}  Kg5 {[%clk 0:02:09]} 48. Bf5 {[%clk 0:01:19]}  Kf4 {[%clk 0:02:10]} 49. Bc8 {[%clk 0:01:20]}  Ke5 {[%clk 0:02:11]} 50. Bf5 {[%clk 0:01:21]}  Kd6 {[%clk 0:02:12]} 51. Bc8 {[%clk 0:01:21]}  Kc7 {[%clk 0:02:12]} 52. Bf5 {[%clk 0:01:22]}  Kb7 {[%clk 0:02:13]} 53. Be6 {[%clk 0:01:22]}  Kc7 {[%clk 0:02:13]} 54. Bf5 {[%clk 0:01:23]}  Kd8 {[%clk 0:02:14]} 55. Be4 {[%clk 0:01:23]}  Ke7 {[%clk 0:02:14]} 56. Bf5 {[%clk 0:01:24]}  Kd6 {[%clk 0:02:14]} 57. Bc8 {[%clk 0:01:24]}  Ke5 {[%clk 0:02:15]} 1/2-1/2


[Site "https://www.chess.com"]

[Event "Titled Tuesday Blitz January 25 2022"]
[White "Ozates, Tuna"]
[Black "Hasangatin, Ramil"]
[WhiteFideId "6354521"]
[BlackFideId "4122160"]
[WhiteElo "1872"]
[BlackElo "2375"]
[Result "0-1"]
[Round "06"]
[TimeControl "180+1"]
[Date "2022.01.26"]
[WhiteClock "0:00:12"]
[BlackClock "0:00:19"]

1. e4 {[%clk 0:03:00]}  d5 {[%clk 0:02:57]} 2. exd5 {[%clk 0:02:58]}  Qxd5 {[%clk 0:02:58]} 3. Nc3 {[%clk 0:02:59]}  Qd6 {[%clk 0:02:59]} 4. d4 {[%clk 0:03:00]}  Nf6 {[%clk 0:02:59]} 5. Nf3 {[%clk 0:03:00]}  c6 {[%clk 0:02:59]} 6. g3 {[%clk 0:03:01]}  Bg4 {[%clk 0:03:00]} 7. Bg2 {[%clk 0:03:01]}  e6 {[%clk 0:02:58]} 8. O-O {[%clk 0:03:00]}  Be7 {[%clk 0:02:59]} 9. Qd3 {[%clk 0:02:59]}  Bxf3 {[%clk 0:02:58]} 10. Bxf3 {[%clk 0:02:59]}  O-O {[%clk 0:02:57]} 11. Bf4 {[%clk 0:02:57]}  Qd8 {[%clk 0:02:58]} 12. Rab1 {[%clk 0:02:56]}  Nbd7 {[%clk 0:02:57]} 13. b4 {[%clk 0:02:54]}  Nd5 {[%clk 0:02:57]} 14. Bd2 {[%clk 0:02:48]}  Nxb4 {[%clk 0:02:53]} 15. Qe2 {[%clk 0:02:40]}  Nxc2 {[%clk 0:02:48]} 16. Qe4 {[%clk 0:02:19]}  Nb4 {[%clk 0:02:44]} 17. a3 {[%clk 0:02:19]}  Nf6 {[%clk 0:02:44]} 18. Qe2 {[%clk 0:02:13]}  Nbd5 {[%clk 0:02:29]} 19. Rxb7 {[%clk 0:02:11]}  Bxa3 {[%clk 0:02:29]} 20. Ra1 {[%clk 0:02:09]}  Qc8 {[%clk 0:02:14]} 21. Qa6 {[%clk 0:01:55]}  Nb4 {[%clk 0:02:02]} 22. Qxa3 {[%clk 0:01:42]}  Qxb7 {[%clk 0:01:58]} 23. Rb1 {[%clk 0:01:42]}  a5 {[%clk 0:01:58]} 24. Na4 {[%clk 0:01:38]}  Nfd5 {[%clk 0:01:46]} 25. Nc5 {[%clk 0:01:38]}  Qe7 {[%clk 0:01:39]} 26. Be4 {[%clk 0:01:35]}  Rfb8 {[%clk 0:01:35]} 27. Qf3 {[%clk 0:01:24]}  f5 {[%clk 0:01:32]} 28. Bxd5 {[%clk 0:01:10]}  exd5 {[%clk 0:01:24]} 29. Re1 {[%clk 0:01:04]}  Qf7 {[%clk 0:01:20]} 30. Bf4 {[%clk 0:01:03]}  Re8 {[%clk 0:01:17]} 31. Be5 {[%clk 0:01:03]}  Na6 {[%clk 0:00:57]} 32. Nd3 {[%clk 0:00:59]}  a4 {[%clk 0:00:51]} 33. Ra1 {[%clk 0:00:58]}  Nc7 {[%clk 0:00:46]} 34. Nc5 {[%clk 0:00:56]}  Ne6 {[%clk 0:00:42]} 35. Nxe6 {[%clk 0:00:54]}  Rxe6 {[%clk 0:00:37]} 36. Qc3 {[%clk 0:00:51]}  h6 {[%clk 0:00:34]} 37. f4 {[%clk 0:00:51]}  Kh7 {[%clk 0:00:35]} 38. Qb4 {[%clk 0:00:49]}  Qa7 {[%clk 0:00:27]} 39. Ra3 {[%clk 0:00:47]}  Qa6 {[%clk 0:00:20]} 40. Kf2 {[%clk 0:00:41]}  Qc4 {[%clk 0:00:19]} 41. Qxc4 {[%clk 0:00:37]}  dxc4 {[%clk 0:00:20]} 42. Ke3 {[%clk 0:00:38]}  Re7 {[%clk 0:00:19]} 43. d5 {[%clk 0:00:32]}  cxd5 {[%clk 0:00:18]} 44. Kd4 {[%clk 0:00:32]}  Rb7 {[%clk 0:00:18]} 45. Kxd5 {[%clk 0:00:30]}  Rb3 {[%clk 0:00:19]} 46. Ra2 {[%clk 0:00:23]}  c3 {[%clk 0:00:19]} 47. Ke6 {[%clk 0:00:23]}  a3 {[%clk 0:00:17]} 48. Kxf5 {[%clk 0:00:17]}  Rb2 {[%clk 0:00:17]} 49. Ra1 {[%clk 0:00:17]}  a2 {[%clk 0:00:17]} 50. Bxc3 {[%clk 0:00:15]}  Rb1 {[%clk 0:00:17]} 51. Ke4 {[%clk 0:00:12]}  Rxa1 {[%clk 0:00:17]} 52. Bxa1 {[%clk 0:00:12]}  Rb8 {[%clk 0:00:18]} 53. g4 {[%clk 0:00:12]}  Rb1 {[%clk 0:00:19]} 0-1


[Site "https://www.chess.com"]

[Event "Titled Tuesday Blitz January 25 2022"]
[White "Panesar Vedant"]
[Black "Sviridov, Valery"]
[WhiteFideId "35033018"]
[BlackFideId "4120680"]
[WhiteElo "1971"]
[BlackElo "2454"]
[Result "0-1"]
[Round "06"]
[TimeControl "180+1"]
[Date "2022.01.26"]
[WhiteClock "0:00:05"]
[BlackClock "0:00:42"]

1. d4 {[%clk 0:02:55]}  g6 {[%clk 0:02:59]} 2. Nf3 {[%clk 0:02:53]}  Bg7 {[%clk 0:02:59]} 3. c4 {[%clk 0:02:53]}  d6 {[%clk 0:02:59]} 4. Nc3 {[%clk 0:02:53]}  e5 {[%clk 0:02:59]} 5. e4 {[%clk 0:02:49]}  exd4 {[%clk 0:02:59]} 6. Nxd4 {[%clk 0:02:49]}  Nc6 {[%clk 0:03:00]} 7. Be3 {[%clk 0:02:48]}  Nge7 {[%clk 0:03:00]} 8. Be2 {[%clk 0:02:45]}  O-O {[%clk 0:02:59]} 9. O-O {[%clk 0:02:42]}  f5 {[%clk 0:02:59]} 10. exf5 {[%clk 0:02:42]}  Bxd4 {[%clk 0:02:59]} 11. Bxd4 {[%clk 0:02:38]}  Nxf5 {[%clk 0:03:00]} 12. Be3 {[%clk 0:02:22]}  Nxe3 {[%clk 0:02:59]} 13. fxe3 {[%clk 0:02:23]}  Rxf1+ {[%clk 0:03:00]} 14. Qxf1 {[%clk 0:02:23]}  Be6 {[%clk 0:02:59]} 15. Qf4 {[%clk 0:02:21]}  Qe7 {[%clk 0:02:50]} 16. Rf1 {[%clk 0:02:19]}  Ne5 {[%clk 0:02:40]} 17. Nb5 {[%clk 0:02:11]}  c6 {[%clk 0:02:32]} 18. Nd4 {[%clk 0:01:43]}  Bf7 {[%clk 0:02:26]} 19. b3 {[%clk 0:01:30]}  a6 {[%clk 0:02:27]} 20. Qg3 {[%clk 0:01:30]}  Kh8 {[%clk 0:02:05]} 21. Nf3 {[%clk 0:01:28]}  Nd7 {[%clk 0:02:00]} 22. Ng5 {[%clk 0:01:25]}  Bg8 {[%clk 0:02:00]} 23. Rd1 {[%clk 0:01:06]}  Ne5 {[%clk 0:01:53]} 24. Ne4 {[%clk 0:01:00]}  Rd8 {[%clk 0:01:50]} 25. Qf4 {[%clk 0:00:47]}  Kg7 {[%clk 0:01:48]} 26. Rf1 {[%clk 0:00:46]}  Be6 {[%clk 0:01:42]} 27. Ng5 {[%clk 0:00:44]}  Bf5 {[%clk 0:01:39]} 28. Qh4 {[%clk 0:00:42]}  h6 {[%clk 0:01:35]} 29. Ne6+ {[%clk 0:00:41]}  Qxe6 {[%clk 0:01:30]} 30. Qxd8 {[%clk 0:00:41]}  Nf7 {[%clk 0:01:31]} 31. Qh4 {[%clk 0:00:39]}  Qxe3+ {[%clk 0:01:31]} 32. Qf2 {[%clk 0:00:40]}  Qe7 {[%clk 0:01:31]} 33. Bf3 {[%clk 0:00:36]}  Ne5 {[%clk 0:01:31]} 34. Kh1 {[%clk 0:00:37]}  h5 {[%clk 0:01:29]} 35. Re1 {[%clk 0:00:36]}  h4 {[%clk 0:01:17]} 36. Qd4 {[%clk 0:00:33]}  Qf6 {[%clk 0:01:17]} 37. c5 {[%clk 0:00:20]}  Nf7 {[%clk 0:01:13]} 38. Qxf6+ {[%clk 0:00:21]}  Kxf6 {[%clk 0:01:14]} 39. cxd6 {[%clk 0:00:20]}  Nxd6 {[%clk 0:01:15]} 40. Kg1 {[%clk 0:00:20]}  Nb5 {[%clk 0:01:13]} 41. Kf2 {[%clk 0:00:19]}  Nd6 {[%clk 0:01:09]} 42. Rd1 {[%clk 0:00:19]}  Ke5 {[%clk 0:01:08]} 43. Ke3 {[%clk 0:00:19]}  Be6 {[%clk 0:01:07]} 44. Kf2 {[%clk 0:00:18]}  g5 {[%clk 0:01:06]} 45. Re1+ {[%clk 0:00:18]}  Kf6 {[%clk 0:01:06]} 46. Rd1 {[%clk 0:00:18]}  Ke5 {[%clk 0:01:06]} 47. Re1+ {[%clk 0:00:19]}  Kf6 {[%clk 0:01:06]} 48. Rd1 {[%clk 0:00:19]}  Nf7 {[%clk 0:01:01]} 49. Ke3 {[%clk 0:00:17]}  Ke5 {[%clk 0:00:59]} 50. Kd3 {[%clk 0:00:16]}  a5 {[%clk 0:00:59]} 51. Ke3 {[%clk 0:00:17]}  Nd6 {[%clk 0:00:58]} 52. Rd2 {[%clk 0:00:16]}  a4 {[%clk 0:00:58]} 53. Rb2 {[%clk 0:00:14]}  a3 {[%clk 0:00:57]} 54. Rd2 {[%clk 0:00:13]}  Nb5 {[%clk 0:00:57]} 55. Rc2 {[%clk 0:00:12]}  Kd6 {[%clk 0:00:54]} 56. Rd2+ {[%clk 0:00:13]}  Kc5 {[%clk 0:00:54]} 57. h3 {[%clk 0:00:11]}  Nc3 {[%clk 0:00:52]} 58. Rc2 {[%clk 0:00:10]}  Kb4 {[%clk 0:00:52]} 59. Bg4 {[%clk 0:00:07]}  Bxb3 {[%clk 0:00:50]} 60. axb3 {[%clk 0:00:05]}  Kxb3 {[%clk 0:00:51]} 61. Kd3 {[%clk 0:00:05]}  Nd5 {[%clk 0:00:44]} 62. Be6 {[%clk 0:00:02]}  a2 {[%clk 0:00:44]} 63. Bxd5+ {[%clk 0:00:03]}  cxd5 {[%clk 0:00:44]} 64. Rc7 {[%clk 0:00:03]}  b5 {[%clk 0:00:42]} 65. Rb7 {[%clk 0:00:03]}  b4 {[%clk 0:00:42]} 66. Ra7 {[%clk 0:00:04]}  Kb2 {[%clk 0:00:42]} 67. Kd4 {[%clk 0:00:04]}  a1=Q {[%clk 0:00:41]} 68. Rxa1 {[%clk 0:00:05]}  Kxa1 {[%clk 0:00:42]} 0-1


[Site "https://www.chess.com"]

[Event "Titled Tuesday Blitz January 25 2022"]
[White "Papp, Levente"]
[Black "Khripachenko, Alexander"]
[WhiteFideId "751243"]
[BlackFideId "54184975"]
[WhiteElo "2308"]
[BlackElo "2177"]
[Result "0-1"]
[Round "06"]
[TimeControl "180+1"]
[Date "2022.01.26"]
[WhiteClock "0:00:16"]
[BlackClock "0:00:39"]

1. c4 {[%clk 0:03:00]}  Nf6 {[%clk 0:02:59]} 2. Nc3 {[%clk 0:03:00]}  e5 {[%clk 0:02:58]} 3. e3 {[%clk 0:02:59]}  Bb4 {[%clk 0:02:58]} 4. Nge2 {[%clk 0:02:59]}  O-O {[%clk 0:02:57]} 5. g3 {[%clk 0:02:57]}  c6 {[%clk 0:02:56]} 6. Bg2 {[%clk 0:02:54]}  d5 {[%clk 0:02:56]} 7. cxd5 {[%clk 0:02:54]}  cxd5 {[%clk 0:02:57]} 8. d4 {[%clk 0:02:49]}  e4 {[%clk 0:02:57]} 9. O-O {[%clk 0:02:43]}  Nc6 {[%clk 0:02:57]} 10. f3 {[%clk 0:02:34]}  exf3 {[%clk 0:02:52]} 11. Bxf3 {[%clk 0:02:35]}  Bh3 {[%clk 0:02:51]} 12. Re1 {[%clk 0:02:34]}  Re8 {[%clk 0:02:45]} 13. Nf4 {[%clk 0:02:31]}  Bf5 {[%clk 0:02:45]} 14. Bd2 {[%clk 0:02:16]}  Bxc3 {[%clk 0:02:44]} 15. Bxc3 {[%clk 0:02:16]}  Be4 {[%clk 0:02:44]} 16. Be2 {[%clk 0:02:15]}  Qd6 {[%clk 0:02:35]} 17. Qb3 {[%clk 0:02:09]}  Re7 {[%clk 0:02:34]} 18. Rac1 {[%clk 0:01:59]}  Rae8 {[%clk 0:02:33]} 19. Bd2 {[%clk 0:01:57]}  Qd7 {[%clk 0:02:23]} 20. Bb5 {[%clk 0:01:38]}  g5 {[%clk 0:02:12]} 21. Nd3 {[%clk 0:01:38]}  Qh3 {[%clk 0:02:05]} 22. Re2 {[%clk 0:01:38]}  Ng4 {[%clk 0:01:56]} 23. Ne1 {[%clk 0:01:34]}  Re6 {[%clk 0:01:40]} 24. Bd3 {[%clk 0:01:22]}  Rf6 {[%clk 0:01:36]} 25. Nc2 {[%clk 0:01:09]}  Bf3 {[%clk 0:01:14]} 26. Bxh7+ {[%clk 0:00:33]}  Qxh7 {[%clk 0:00:54]} 27. Rce1 {[%clk 0:00:23]}  Bxe2 {[%clk 0:00:53]} 28. Rxe2 {[%clk 0:00:24]}  Qh3 {[%clk 0:00:49]} 29. Rg2 {[%clk 0:00:24]}  Nxh2 {[%clk 0:00:43]} 30. Qd3 {[%clk 0:00:16]}  Nf3+ {[%clk 0:00:40]} 31. Kf2 {[%clk 0:00:16]}  Nfe5+ {[%clk 0:00:39]} 0-1


[Site "https://www.chess.com"]

[Event "Titled Tuesday Blitz January 25 2022"]
[White "Poliannikov, Danila"]
[Black "Cunjalo, Faris"]
[WhiteFideId "30935245"]
[BlackFideId "14410710"]
[WhiteElo "2557"]
[BlackElo "2263"]
[Result "0-1"]
[Round "06"]
[TimeControl "180+1"]
[Date "2022.01.26"]
[WhiteClock "0:00:03"]
[BlackClock "0:00:09"]

1. Nf3 {[%clk 0:03:00]}  d5 {[%clk 0:02:57]} 2. b3 {[%clk 0:02:59]}  Bg4 {[%clk 0:02:55]} 3. Bb2 {[%clk 0:02:57]}  Bxf3 {[%clk 0:02:54]} 4. gxf3 {[%clk 0:02:54]}  e6 {[%clk 0:02:55]} 5. e3 {[%clk 0:02:51]}  Nf6 {[%clk 0:02:55]} 6. f4 {[%clk 0:02:50]}  g6 {[%clk 0:02:55]} 7. d3 {[%clk 0:02:50]}  Bg7 {[%clk 0:02:53]} 8. Nd2 {[%clk 0:02:50]}  c5 {[%clk 0:02:50]} 9. Nf3 {[%clk 0:02:48]}  Nc6 {[%clk 0:02:50]} 10. Be2 {[%clk 0:02:43]}  d4 {[%clk 0:02:43]} 11. Qd2 {[%clk 0:02:37]}  Nd5 {[%clk 0:02:40]} 12. a3 {[%clk 0:02:18]}  dxe3 {[%clk 0:02:40]} 13. Qc1 {[%clk 0:02:15]}  exf2+ {[%clk 0:02:33]} 14. Kxf2 {[%clk 0:02:14]}  Nd4 {[%clk 0:02:28]} 15. b4 {[%clk 0:02:03]}  Nxe2 {[%clk 0:02:09]} 16. Kxe2 {[%clk 0:02:04]}  Bxb2 {[%clk 0:01:34]} 17. Qxb2 {[%clk 0:02:03]}  Nxf4+ {[%clk 0:01:34]} 18. Kd2 {[%clk 0:01:22]}  O-O {[%clk 0:01:34]} 19. bxc5 {[%clk 0:01:22]}  Qd5 {[%clk 0:01:34]} 20. Rhf1 {[%clk 0:01:13]}  Qxc5 {[%clk 0:01:33]} 21. Ne5 {[%clk 0:01:01]}  Nh5 {[%clk 0:01:20]} 22. Nxf7 {[%clk 0:00:45]}  Rxf7 {[%clk 0:00:50]} 23. Rxf7 {[%clk 0:00:44]}  Qg5+ {[%clk 0:00:50]} 24. Ke2 {[%clk 0:00:16]}  Qg4+ {[%clk 0:00:28]} 25. Ke3 {[%clk 0:00:16]}  Qg5+ {[%clk 0:00:24]} 26. Ke2 {[%clk 0:00:16]}  Nf4+ {[%clk 0:00:24]} 27. Kf2 {[%clk 0:00:02]}  Qg2+ {[%clk 0:00:15]} 28. Ke3 {[%clk 0:00:02]}  Kxf7 {[%clk 0:00:13]} 29. Kxf4 {[%clk 0:00:02]}  Qxh2+ {[%clk 0:00:13]} 30. Ke3 {[%clk 0:00:03]}  Qg3+ {[%clk 0:00:13]} 31. Ke2 {[%clk 0:00:03]}  Qg2+ {[%clk 0:00:11]} 32. Ke3 {[%clk 0:00:03]}  Kg8 {[%clk 0:00:12]} 33. Qe5 {[%clk 0:00:02]}  Qh3+ {[%clk 0:00:11]} 34. Kd4 {[%clk 0:00:02]}  Rc8 {[%clk 0:00:10]} 35. Qd6 {[%clk 0:00:01]}  Qg4+ {[%clk 0:00:09]} 36. Ke3 {[%clk 0:00:01]}  Qg5+ {[%clk 0:00:09]} 37. Ke2 {[%clk 0:00:01]}  Rxc2+ {[%clk 0:00:08]} 38. Kf3 {[%clk 0:00:02]}  Qf5+ {[%clk 0:00:08]} 39. Ke3 {[%clk 0:00:02]}  Qf2+ {[%clk 0:00:08]} 40. Ke4 {[%clk 0:00:03]}  Re2# {[%clk 0:00:09]} 0-1


[Site "https://www.chess.com"]

[Event "Titled Tuesday Blitz January 25 2022"]
[White "Pranav, V"]
[Black "Cherniaiev, Tykhon"]
[WhiteFideId "25060783"]
[BlackFideId "14182360"]
[WhiteElo "2349"]
[BlackElo "2289"]
[Result "1/2-1/2"]
[Round "06"]
[TimeControl "180+1"]
[Date "2022.01.26"]
[WhiteClock "0:00:22"]
[BlackClock "0:00:32"]

1. e4 {[%clk 0:03:00]}  c5 {[%clk 0:03:00]} 2. Nf3 {[%clk 0:02:58]}  e6 {[%clk 0:03:00]} 3. b3 {[%clk 0:02:54]}  b6 {[%clk 0:03:00]} 4. Bb2 {[%clk 0:02:49]}  Bb7 {[%clk 0:02:58]} 5. Nc3 {[%clk 0:02:48]}  Nc6 {[%clk 0:02:57]} 6. g3 {[%clk 0:02:45]}  d6 {[%clk 0:02:57]} 7. Bg2 {[%clk 0:02:45]}  Nf6 {[%clk 0:02:58]} 8. O-O {[%clk 0:02:45]}  Be7 {[%clk 0:02:57]} 9. d4 {[%clk 0:02:45]}  cxd4 {[%clk 0:02:57]} 10. Nxd4 {[%clk 0:02:45]}  O-O {[%clk 0:02:57]} 11. e5 {[%clk 0:02:21]}  Nd5 {[%clk 0:02:52]} 12. Nxc6 {[%clk 0:02:15]}  Bxc6 {[%clk 0:02:51]} 13. Nxd5 {[%clk 0:02:15]}  Bxd5 {[%clk 0:02:47]} 14. Bxd5 {[%clk 0:02:15]}  exd5 {[%clk 0:02:48]} 15. Re1 {[%clk 0:02:09]}  dxe5 {[%clk 0:02:43]} 16. Rxe5 {[%clk 0:02:10]}  Bf6 {[%clk 0:02:39]} 17. Rxd5 {[%clk 0:02:08]}  Bxb2 {[%clk 0:02:38]} 18. Rxd8 {[%clk 0:02:07]}  Raxd8 {[%clk 0:02:37]} 19. Qf1 {[%clk 0:02:06]}  Bxa1 {[%clk 0:02:36]} 20. Qxa1 {[%clk 0:02:07]}  Rfe8 {[%clk 0:02:23]} 21. Qc3 {[%clk 0:02:04]}  Rc8 {[%clk 0:02:21]} 22. Qd3 {[%clk 0:01:57]}  Red8 {[%clk 0:02:14]} 23. Qe2 {[%clk 0:01:49]}  Re8 {[%clk 0:02:14]} 24. Qd2 {[%clk 0:01:40]}  Red8 {[%clk 0:02:14]} 25. Qe2 {[%clk 0:01:16]}  Re8 {[%clk 0:02:13]} 26. Qa6 {[%clk 0:01:10]}  Rxc2 {[%clk 0:01:54]} 27. Qxa7 {[%clk 0:01:10]}  g6 {[%clk 0:01:53]} 28. a4 {[%clk 0:01:08]}  Re6 {[%clk 0:01:50]} 29. b4 {[%clk 0:01:06]}  Rf6 {[%clk 0:01:07]} 30. Qb8+ {[%clk 0:01:05]}  Kg7 {[%clk 0:01:07]} 31. Qe5 {[%clk 0:01:06]}  Rxf2 {[%clk 0:01:01]} 32. Qd4 {[%clk 0:01:06]}  Rf5 {[%clk 0:00:48]} 33. Kg2 {[%clk 0:01:01]}  h5 {[%clk 0:00:47]} 34. h3 {[%clk 0:00:56]}  Kh7 {[%clk 0:00:46]} 35. Qe3 {[%clk 0:00:32]}  Re6 {[%clk 0:00:45]} 36. Qd3 {[%clk 0:00:29]}  Rfe5 {[%clk 0:00:44]} 37. Kf3 {[%clk 0:00:23]}  Rf6+ {[%clk 0:00:43]} 38. Kg2 {[%clk 0:00:23]}  Rfe6 {[%clk 0:00:44]} 39. Kf3 {[%clk 0:00:22]}  Rf6+ {[%clk 0:00:34]} 40. Kg2 {[%clk 0:00:22]}  Rfe6 {[%clk 0:00:32]} 1/2-1/2


[Site "https://www.chess.com"]

[Event "Titled Tuesday Blitz January 25 2022"]
[White "Putnam, Liam"]
[Black "De Silva, L M S T"]
[WhiteFideId "30938279"]
[BlackFideId "9953698"]
[WhiteElo "2035"]
[BlackElo "1631"]
[Result "1-0"]
[Round "06"]
[TimeControl "180+1"]
[Date "2022.01.26"]
[WhiteClock "0:00:10"]
[BlackClock "0:00:03"]

1. Nf3 {[%clk 0:03:00]}  Nf6 {[%clk 0:03:00]} 2. c4 {[%clk 0:02:59]}  b6 {[%clk 0:03:00]} 3. Nc3 {[%clk 0:02:59]}  Bb7 {[%clk 0:03:01]} 4. d4 {[%clk 0:02:59]}  e6 {[%clk 0:03:00]} 5. a3 {[%clk 0:02:57]}  Ne4 {[%clk 0:02:59]} 6. Nxe4 {[%clk 0:02:48]}  Bxe4 {[%clk 0:03:00]} 7. Nd2 {[%clk 0:02:49]}  Bb7 {[%clk 0:03:00]} 8. e4 {[%clk 0:02:50]}  g6 {[%clk 0:03:01]} 9. Bd3 {[%clk 0:02:50]}  Bg7 {[%clk 0:03:01]} 10. Nf3 {[%clk 0:02:50]}  d6 {[%clk 0:03:01]} 11. Bg5 {[%clk 0:02:49]}  Qd7 {[%clk 0:02:58]} 12. Qe2 {[%clk 0:02:48]}  Nc6 {[%clk 0:02:57]} 13. d5 {[%clk 0:02:36]}  Nd4 {[%clk 0:02:54]} 14. Nxd4 {[%clk 0:02:35]}  Bxd4 {[%clk 0:02:55]} 15. O-O {[%clk 0:02:20]}  Bg7 {[%clk 0:02:50]} 16. Rad1 {[%clk 0:02:12]}  O-O {[%clk 0:02:48]} 17. Qd2 {[%clk 0:02:01]}  e5 {[%clk 0:02:44]} 18. Rde1 {[%clk 0:01:25]}  f5 {[%clk 0:02:40]} 19. f4 {[%clk 0:01:23]}  fxe4 {[%clk 0:02:37]} 20. Rxe4 {[%clk 0:01:24]}  Rae8 {[%clk 0:02:37]} 21. fxe5 {[%clk 0:01:10]}  Rxf1+ {[%clk 0:02:38]} 22. Bxf1 {[%clk 0:01:10]}  Bxe5 {[%clk 0:02:37]} 23. Bf4 {[%clk 0:01:07]}  Bf6 {[%clk 0:02:28]} 24. Rxe8+ {[%clk 0:00:49]}  Qxe8 {[%clk 0:02:29]} 25. b4 {[%clk 0:00:50]}  Bc8 {[%clk 0:02:12]} 26. h3 {[%clk 0:00:46]}  Qa4 {[%clk 0:02:06]} 27. Qe3 {[%clk 0:00:45]}  Bd7 {[%clk 0:02:06]} 28. Kh2 {[%clk 0:00:43]}  Qd1 {[%clk 0:02:03]} 29. Be2 {[%clk 0:00:41]}  Qa1 {[%clk 0:01:57]} 30. Bg4 {[%clk 0:00:32]}  Bd4 {[%clk 0:01:31]} 31. Be6+ {[%clk 0:00:31]}  Kh8 {[%clk 0:01:31]} 32. Qe4 {[%clk 0:00:16]}  Bg1+ {[%clk 0:00:55]} 33. Kg3 {[%clk 0:00:15]}  Qc3+ {[%clk 0:00:49]} 34. Kg4 {[%clk 0:00:14]}  Be8 {[%clk 0:00:33]} 35. Bc8 {[%clk 0:00:13]}  Bf7 {[%clk 0:00:14]} 36. Qe7 {[%clk 0:00:12]}  Kg7 {[%clk 0:00:06]} 37. Be6 {[%clk 0:00:10]}  Qf6 {[%clk 0:00:04]} 38. Bh6+ {[%clk 0:00:10]}  Kxh6 {[%clk 0:00:03]} 39. Qxf6 {[%clk 0:00:10]} 1-0


[Site "https://www.chess.com"]